bitfinex/quotes_SOLUSD_20240729
["timestamp","ask_amount","ask_price","bid_price","bid_amount"]
[1722212225874,0.6473815,186.81,186.79,1.07021986]
[1722212226156,0.5343815,186.81,186.8,17.5300049]
[1722212226366,0.5343815,186.81,186.8,82.5300049]
[1722212226529,0.5343815,186.81,186.8,21.4100049]
[1722212226952,0.5343815,186.81,186.8,62.5300049]
[1722212227256,0.5343815,186.81,186.8,66.0700049]
[1722212227647,0.5343815,186.81,186.8,20.0]
[1722212227850,0.5343815,186.81,186.72,35.8065]
[1722212227851,0.5343815,186.81,186.78,20.0]
[1722212228159,0.5343815,186.81,186.69,34.4207]
[1722212228364,0.5343815,186.81,186.7,15.774]
[1722212228562,0.5343815,186.81,186.69,34.4207]
[1722212229051,0.5343815,186.81,186.7,16.12]
[1722212229258,0.5343815,186.81,186.69,34.4207]
[1722212229259,7.1973815,186.81,186.69,34.4207]
[1722212229854,7.1973815,186.81,186.69,28.07]
[1722212230160,16.3298,186.8,186.69,28.07]
[1722212230345,16.3298,186.8,186.7,1.07063087]
[1722212230657,16.3298,186.8,186.71,1.07062865]
[1722212231347,16.3298,186.8,186.69,1.07065197]
[1722212231653,16.3298,186.8,186.65,28.07]
[1722212231860,0.25437976,186.79,186.64,255.8]
[1722212232833,0.25437976,186.79,186.65,1.07105704]
[1722212233466,0.25437976,186.79,186.65,29.14105704]
[1722212233842,0.25437976,186.79,186.66,20.0]
[1722212234064,0.25437976,186.79,186.67,46.07087879]
[1722212234236,0.25437976,186.79,186.66,20.34]
[1722212234237,0.25437976,186.79,186.68,20.0]
[1722212234443,16.5233,186.77,186.58,16.12]
[1722212234650,16.5233,186.77,186.59,1.07120175]
[1722212234651,6.1355,186.76,186.59,1.07120175]
[1722212235039,20.8071,186.75,186.59,1.07120175]
[1722212235267,6.1355,186.72,186.57,29.14141559]
[1722212235655,6.1355,186.72,186.54,1.07149309]
[1722212235656,16.5233,186.71,186.54,1.07149309]
[1722212235851,20.8081,186.71,186.53,1.07165625]
[1722212236035,16.5233,186.71,186.53,1.07165625]
[1722212236234,20.6621,186.69,186.49,1.07175975]
[1722212236461,20.6621,186.69,186.48,28.07]
[1722212236462,6.5901,186.67,186.48,28.07]
[1722212236773,6.5901,186.67,186.47,1.07199804]
[1722212236774,4.2864,186.64,186.47,1.07199804]
[1722212237063,6.1896,186.6,186.44,1.07216051]
[1722212237237,6.1896,186.6,186.42,1.07216051]
[1722212237653,0.26913807,186.59,186.43,1.07238391]
[1722212237848,0.26913807,186.59,186.4,1.07228801]
[1722212240159,0.26913807,186.59,186.48,28.07]
[1722212240344,0.26913807,186.59,186.49,1.41185426]
[1722212240666,0.26913807,186.59,186.5,1.07195964]
[1722212240848,0.26913807,186.59,186.49,20.0]
[1722212241052,0.26913807,186.59,186.45,20.0]
[1722212241259,0.26913807,186.59,186.44,1.07227972]
[1722212241440,0.26913807,186.59,186.4,1.07229003]
[1722212241641,45.26913807,186.59,186.41,30.0]
[1722212241861,0.26913807,186.59,186.42,1.07232369]
[1722212242167,0.26913807,186.59,186.43,1.07216088]
[1722212242571,0.26913807,186.59,186.43,17.19216088]
[1722212242739,0.26913807,186.59,186.44,65.0]
[1722212242938,0.26913807,186.59,186.45,1.41203426]
[1722212243162,0.26913807,186.59,186.45,1.41209914]
[1722212243464,0.26913807,186.59,186.46,1.07209914]
[1722212243641,0.26913807,186.59,186.47,0.34]
[1722212243860,0.26913807,186.59,186.47,0.17]
[1722212244049,0.26913807,186.59,186.47,1.24221722]
[1722212244449,0.26913807,186.59,186.45,1.24228347]
[1722212244651,0.26913807,186.59,186.41,1.07228265]
[1722212244865,45.26913807,186.59,186.41,1.07228265]
[1722212245265,16.2734,186.58,186.41,1.07228265]
[1722212245483,45.0,186.57,186.42,1.0724159]
[1722212245660,45.0,186.57,186.43,1.07241338]
[1722212245867,45.0,186.57,186.4,1.07241343]
[1722212246062,15.4668,186.54,186.38,1.07241711]
[1722212246254,15.4668,186.54,186.36,1.07241711]
[1722212246574,6.4847,186.53,186.36,1.07241711]
[1722212247455,6.4847,186.53,186.37,0.34]
[1722212247663,6.4847,186.53,186.38,1.07241431]
[1722212247860,6.4847,186.53,186.39,0.34]
[1722212248260,6.4847,186.53,186.39,20.0]
[1722212248468,6.4847,186.53,186.4,1.07261015]
[1722212248659,6.4847,186.53,186.39,20.0]
[1722212248859,6.4847,186.53,186.36,21.07261127]
[1722212249055,6.4847,186.53,186.36,1.07270918]
[1722212249056,45.0,186.52,186.36,1.07270918]
[1722212249361,6.4847,186.53,186.36,1.07270918]
[1722212249561,6.4847,186.53,186.36,1.07269408]
[1722212250458,6.4847,186.53,186.37,0.34]
[1722212250661,6.4847,186.53,186.38,1.07243016]
[1722212250873,6.4847,186.53,186.39,0.34]
[1722212251182,10.7735,186.53,186.39,0.34]
[1722212251477,6.4847,186.53,186.38,0.34]
[1722212251688,6.4847,186.53,186.39,1.07268349]
[1722212251899,6.4847,186.53,186.4,1.41253238]
[1722212252387,6.4847,186.53,186.4,46.41253238]
[1722212252558,6.4847,186.53,186.43,28.07]
[1722212252754,6.4847,186.53,186.44,66.41214626]
[1722212253180,15.4668,186.54,186.44,66.41214626]
[1722212254078,15.4668,186.54,186.45,1.07226228]
[1722212254264,15.4668,186.54,186.46,1.41214526]
[1722212254465,15.4668,186.54,186.47,0.34]
[1722212254675,15.4668,186.54,186.48,1.07214542]
[1722212254882,15.4668,186.54,186.49,0.17]
[1722212255572,15.4668,186.54,186.47,1.07214534]
[1722212255984,15.4668,186.54,186.48,0.34]
[1722212256164,15.4668,186.54,186.49,1.07214551]
[1722212256668,15.4668,186.54,186.45,1.07214551]
[1722212256870,15.4668,186.54,186.46,0.17]
[1722212257085,15.4668,186.54,186.44,21.24225922]
[1722212257086,15.4668,186.54,186.45,0.17]
[1722212257260,15.4668,186.54,186.4,1.0724555]
[1722212257468,4.2888,186.53,186.36,1.0724555]
[1722212257655,15.4668,186.54,186.36,1.0724555]
[1722212257988,19.7555,186.54,186.36,1.0724555]
[1722212258163,15.4668,186.54,186.36,1.0724555]
[1722212258578,15.4668,186.54,186.4,16.12]
[1722212258879,15.4668,186.54,186.43,44.19]
[1722212259182,15.4668,186.54,186.44,21.07212012]
[1722212259384,15.4668,186.54,186.45,45.34]
[1722212259558,15.4668,186.54,186.47,28.07]
[1722212259884,0.26913807,186.59,186.47,28.07]
[1722212259885,22.15933807,186.59,186.48,66.41203131]
[1722212260196,0.26913807,186.59,186.51,44.19]
[1722212260478,0.26913807,186.59,186.52,66.41157104]
[1722212260683,0.26913807,186.59,186.52,82.53157104]
[1722212261085,0.26913807,186.59,186.52,66.41157104]
[1722212262364,0.26913807,186.59,186.52,82.53157104]
[1722212262773,3.807e-05,186.59,186.52,82.53157104]
[1722212262968,3.807e-05,186.59,186.55,44.19]
[1722212263285,3.807e-05,186.59,186.56,82.53129051]
[1722212263492,3.807e-05,186.59,186.56,66.41129051]
[1722212264277,3.807e-05,186.59,186.57,1.07131381]
[1722212264487,3.807e-05,186.59,186.58,1.4113724]
[1722212268591,4.2826,186.8,186.58,1.4113724]
[1722212268592,6.0198,186.73,186.58,1.4113724]
[1722212268791,6.0198,186.73,186.63,44.19]
[1722212268993,6.0198,186.73,186.64,66.24095921]
[1722212269197,6.0198,186.73,186.65,1.24096918]
[1722212269493,15.2046,186.75,186.66,0.17]
[1722212269687,15.2046,186.75,186.67,1.07089161]
[1722212269882,15.2046,186.75,186.66,0.17]
[1722212269883,15.2046,186.75,186.68,1.41089161]
[1722212270977,15.2046,186.75,186.69,1.07085758]
[1722212271174,15.2046,186.75,186.7,0.34]
[1722212271379,6.2274,186.77,186.71,1.0708233]
[1722212271575,16.462,186.8,186.72,0.34]
[1722212271784,6.2893,186.82,186.73,1.07054519]
[1722212272102,6.2893,186.82,186.74,1.41045631]
[1722212272278,6.2893,186.82,186.74,1.24045631]
[1722212272615,16.462,186.85,186.75,0.17]
[1722212272785,16.462,186.85,186.76,1.07035007]
[1722212272989,16.462,186.85,186.77,1.41035021]
[1722212273372,16.462,186.85,186.77,0.34]
[1722212274893,16.462,186.85,186.78,0.34]
[1722212275102,16.462,186.85,186.79,1.07044624]
[1722212275294,16.462,186.85,186.8,1.24036863]
[1722212275508,16.462,186.85,186.8,1.41036863]
[1722212276207,16.462,186.85,186.8,0.34]
[1722212276412,16.462,186.85,186.74,1.07036393]
[1722212276617,16.462,186.85,186.75,0.34]
[1722212276796,16.462,186.85,186.76,1.07048668]
[1722212276991,16.462,186.85,186.77,0.34]
[1722212277697,16.462,186.85,186.77,1.41047534]
[1722212278210,16.462,186.85,186.77,0.34]
[1722212279015,16.462,186.85,186.77,0.17]
[1722212280390,16.462,186.85,186.77,1.24053704]
[1722212280715,16.462,186.85,186.78,0.17]
[1722212280926,16.462,186.85,186.77,1.24040223]
[1722212281090,16.462,186.85,186.77,1.24032601]
[1722212281288,16.462,186.85,186.78,0.17]
[1722212281821,16.462,186.85,186.79,1.07037552]
[1722212281990,16.462,186.85,186.8,0.34]
[1722212282189,16.462,186.85,186.78,1.24031824]
[1722212282391,16.462,186.85,186.79,0.17]
[1722212283690,16.462,186.85,186.78,0.17]
[1722212283891,16.462,186.85,186.77,0.34]
[1722212284097,16.462,186.85,186.75,1.0703777]
[1722212284613,16.462,186.85,186.75,37.1903777]
[1722212284915,16.462,186.85,186.76,45.0]
[1722212285126,16.462,186.85,186.77,21.41038444]
[1722212285312,16.462,186.85,186.77,20.34]
[1722212285711,16.462,186.85,186.77,0.34]
[1722212285923,16.462,186.85,186.72,20.0]
[1722212285924,16.462,186.85,186.73,1.07045323]
[1722212286116,16.462,186.85,186.73,1.07049842]
[1722212286417,16.462,186.85,186.67,6.4128]
[1722212286418,16.462,186.85,186.74,1.07054387]
[1722212286923,15.9963815,186.85,186.74,1.07054387]
[1722212287419,15.9963815,186.85,186.75,0.34]
[1722212287631,15.9963815,186.85,186.76,1.07035233]
[1722212287801,15.9963815,186.85,186.77,1.41035276]
[1722212288001,15.9963815,186.85,186.78,0.34]
[1722212288202,15.9963815,186.85,186.79,1.07035304]
[1722212288397,15.9963815,186.85,186.8,1.24035304]
[1722212288623,15.9963815,186.85,186.78,0.17]
[1722212288800,15.9963815,186.85,186.74,1.07035304]
[1722212288998,15.9963815,186.85,186.75,0.34]
[1722212289198,15.9963815,186.85,186.74,20.34]
[1722212289415,15.9963815,186.85,186.75,45.0]
[1722212289598,15.9963815,186.85,186.76,0.17]
[1722212290314,15.9963815,186.85,186.69,1.0704815]
[1722212290722,15.9963815,186.85,186.68,17.19066146]
[1722212291023,15.9963815,186.85,186.7,1.07055659]
[1722212291203,15.9963815,186.85,186.71,1.07049735]
[1722212291398,6.1264,186.84,186.68,1.07044814]
[1722212291696,6.1264,186.84,186.69,1.07084458]
[1722212291697,4.2819,186.83,186.69,1.07084458]
[1722212292017,16.1646,186.83,186.69,1.07084458]
[1722212292226,28.07,186.85,186.64,1.07084655]
[1722212292524,16.1646,186.79,186.59,5.58779747]
[1722212292699,4.2832,186.78,186.61,30.0]
[1722212292906,28.07,186.81,186.6,1.07102075]
[1722212292907,21.651,186.75,186.6,1.07116469]
[1722212293605,21.651,186.75,186.61,1.07135742]
[1722212293926,21.651,186.75,186.61,29.14135742]
[1722212294825,21.651,186.75,186.62,45.34]
[1722212295025,21.651,186.75,186.58,1.07115088]
[1722212296103,21.651,186.75,186.61,28.07]
[1722212296309,21.651,186.75,186.62,37.53089297]
[1722212297027,21.651,186.75,186.63,45.0]
[1722212297201,21.651,186.75,186.64,21.41103522]
[1722212297405,21.651,186.75,186.65,45.0]
[1722212297629,21.651,186.75,186.66,20.34]
[1722212297822,21.651,186.75,186.66,20.17]
[1722212298130,21.651,186.75,186.59,1.07104747]
[1722212298335,21.651,186.75,186.6,0.34]
[1722212298516,21.651,186.75,186.61,1.0712259]
[1722212300002,21.651,186.75,186.62,0.34]
[1722212300211,21.651,186.75,186.63,1.07111571]
[1722212300519,21.651,186.75,186.64,0.34]
[1722212300720,21.651,186.75,186.65,1.07101819]
[1722212300935,21.651,186.75,186.66,0.34]
[1722212301119,21.651,186.75,186.67,1.07101808]
[1722212301427,21.651,186.75,186.68,0.17]
[1722212301637,21.651,186.75,186.66,0.17]
[1722212301932,21.651,186.75,186.61,1.07102089]
[1722212302329,21.651,186.75,186.62,0.34]
[1722212302499,21.651,186.75,186.63,1.07101796]
[1722212302705,21.651,186.75,186.64,0.34]
[1722212302908,21.651,186.75,186.65,1.0710205]
[1722212303102,21.651,186.75,186.66,0.34]
[1722212303419,21.651,186.75,186.67,1.0710195]
[1722212303619,21.651,186.75,186.68,0.34]
[1722212304031,21.651,186.75,186.63,1.07102135]
[1722212304338,21.651,186.75,186.64,0.34]
[1722212304508,21.651,186.75,186.65,1.07113849]
[1722212304706,21.651,186.75,186.66,0.34]
[1722212306926,21.651,186.75,186.66,0.17]
[1722212307135,21.651,186.75,186.55,6.2387]
[1722212307136,21.651,186.75,186.6,1.07126097]
[1722212307323,15.9,186.74,186.57,1.07140321]
[1722212307616,15.9,186.72,186.57,1.07140321]
[1722212307806,15.9,186.72,186.58,1.07146065]
[1722212308428,15.9,186.72,186.53,57.63771431]
[1722212308429,22.3514,186.71,186.54,1.07143935]
[1722212308635,22.3514,186.71,186.55,1.07156955]
[1722212308831,22.5755,186.7,186.55,1.07156955]
[1722212309127,22.5755,186.7,186.54,1.07165262]
[1722212309333,16.175,186.69,186.54,1.07165262]
[1722212309544,6.4005,186.68,186.54,1.07165262]
[1722212309830,6.4005,186.68,186.54,1.07165173]
[1722212310050,6.4005,186.68,186.55,1.07168011]
[1722212311144,6.4005,186.68,186.56,0.34]
[1722212311307,6.4005,186.68,186.57,45.26130934]
[1722212311513,16.175,186.69,186.59,16.12]
[1722212311728,16.175,186.69,186.6,66.24118784]
[1722212311941,16.175,186.69,186.61,1.24119767]
[1722212312138,16.175,186.69,186.62,0.17]
[1722212312435,16.175,186.69,186.63,1.07118809]
[1722212312655,16.175,186.69,186.64,0.34]
[1722212312840,16.175,186.69,186.62,0.17]
[1722212313045,16.175,186.69,186.62,1.07135857]
[1722212313814,16.175,186.69,186.59,1.07125491]
[1722212314453,16.175,186.69,186.6,0.34]
[1722212314734,16.175,186.69,186.61,1.07128108]
[1722212314937,16.175,186.69,186.62,0.34]
[1722212315161,16.175,186.69,186.63,1.07119781]
[1722212315317,16.175,186.69,186.64,0.34]
[1722212315508,16.175,186.69,186.64,0.17]
[1722212315714,16.175,186.69,186.64,20.34]
[1722212316038,15.0306,186.74,186.65,46.07120383]
[1722212316220,15.0306,186.74,186.66,20.34]
[1722212316422,15.0306,186.74,186.67,46.07090548]
[1722212316623,15.0306,186.74,186.68,20.34]
[1722212317634,15.0306,186.74,186.68,0.34]
[1722212318234,15.0306,186.74,186.63,1.07097468]
[1722212318435,15.0306,186.74,186.59,1.07118712]
[1722212319350,15.0306,186.74,186.59,17.19118712]
[1722212319747,15.0306,186.74,186.61,16.12]
[1722212319948,15.0306,186.74,186.62,82.53097575]
[1722212320248,15.0306,186.74,186.63,20.0]
[1722212320446,15.0306,186.74,186.64,1.07112027]
[1722212320837,15.0306,186.74,186.65,1.07117185]
[1722212321824,15.0306,186.74,186.66,1.4109739]
[1722212322547,15.0306,186.74,186.63,1.07109015]
[1722212322724,6.0635,186.73,186.6,1.07112369]
[1722212322924,15.488,186.72,186.55,1.07134741]
[1722212324329,15.488,186.72,186.55,37.19134741]
[1722212324937,15.488,186.72,186.56,0.34]
[1722212325134,15.488,186.72,186.57,1.07137772]
[1722212325334,15.488,186.72,186.58,1.41137889]
[1722212327055,15.488,186.72,186.58,1.07137889]
[1722212327360,15.1203,186.7,186.55,1.0714085]
[1722212327550,6.2809,186.69,186.55,1.0714085]
[1722212328255,6.2809,186.69,186.52,1.07156555]
[1722212328556,15.1203,186.68,186.52,1.07156555]
[1722212328750,15.1203,186.68,186.52,21.07156555]
[1722212329834,15.1203,186.68,186.53,45.17]
[1722212330041,15.1203,186.68,186.54,21.07160129]
[1722212330359,15.1203,186.68,186.55,46.41163092]
[1722212330543,15.1203,186.68,186.56,20.0]
[1722212330739,15.1203,186.68,186.57,0.34]
[1722212331851,6.23,186.67,186.56,1.07164664]
[1722212332052,16.3122,186.66,186.51,6.61644595]
[1722212332240,16.3122,186.66,186.52,1.07184352]
[1722212332441,22.5422,186.65,186.49,1.0718382]
[1722212334945,16.1037,186.63,186.49,1.0718382]
[1722212335444,16.1037,186.63,186.5,0.34]
[1722212335655,16.1037,186.63,186.51,1.07187767]
[1722212335852,16.1037,186.63,186.52,0.34]
[1722212336049,16.1037,186.63,186.52,1.41187666]
[1722212337165,16.1037,186.63,186.53,24.86]
[1722212337339,16.1037,186.63,186.54,66.41163081]
[1722212339747,16.1037,186.63,186.54,66.07163081]
[1722212340452,16.1037,186.63,186.49,1.07184672]
[1722212343067,16.1037,186.63,186.49,37.19184672]
[1722212343273,16.1037,186.63,186.5,45.34]
[1722212343448,16.1037,186.63,186.51,21.07167179]
[1722212343652,16.1037,186.63,186.52,46.41172439]
[1722212343846,16.1037,186.63,186.53,20.0]
[1722212344152,16.1037,186.63,186.54,46.41172368]
[1722212344359,16.1037,186.63,186.55,20.0]
[1722212344556,16.1037,186.63,186.56,0.34]
[1722212344753,16.1037,186.63,186.57,1.07162884]
[1722212345079,6.1537,186.69,186.58,1.41159718]
[1722212345275,6.1537,186.69,186.59,16.12]
[1722212345568,6.1537,186.69,186.58,46.41159718]
[1722212345569,6.1537,186.69,186.6,82.5311901]
[1722212345755,6.3478,186.78,186.63,16.12]
[1722212345950,6.3478,186.78,186.64,37.53080008]
[1722212346143,6.3478,186.78,186.65,46.07080061]
[1722212346367,6.3478,186.78,186.66,20.34]
[1722212346573,6.3478,186.78,186.67,46.07080056]
[1722212346754,6.3478,186.78,186.68,21.41080068]
[1722212347076,6.3478,186.78,186.69,45.0]
[1722212347253,6.3478,186.78,186.7,21.41067803]
[1722212347443,6.3478,186.78,186.71,46.07068668]
[1722212347643,6.3478,186.78,186.72,20.34]
[1722212347842,6.3478,186.78,186.73,46.07069115]
[1722212348072,6.3478,186.78,186.74,20.34]
[1722212348563,6.3478,186.78,186.74,20.0]
[1722212348866,6.3478,186.78,186.66,1.0706935]
[1722212349065,6.3478,186.78,186.67,0.34]
[1722212349283,6.3478,186.78,186.68,1.07080397]
[1722212350458,6.3478,186.78,186.69,1.24084474]
[1722212350652,6.3478,186.78,186.7,0.17]
[1722212350969,6.3478,186.78,186.71,1.07069403]
[1722212351170,6.3478,186.78,186.72,0.34]
[1722212352745,6.3478,186.78,186.72,1.41070205]
[1722212353250,6.3478,186.78,186.72,0.34]
[1722212354177,6.3478,186.78,186.68,1.07076744]
[1722212355272,6.3478,186.78,186.64,1.07090335]
[1722212355574,6.3478,186.78,186.65,1.0709091]
[1722212355768,6.3478,186.78,186.66,0.34]
[1722212355978,6.3478,186.78,186.67,1.07087398]
[1722212356165,6.3478,186.78,186.68,1.41090989]
[1722212356372,6.3478,186.78,186.69,0.34]
[1722212356569,6.3478,186.78,186.7,1.07076363]
[1722212356871,6.3478,186.78,186.71,0.34]
[1722212359376,6.3478,186.78,186.64,1.0709084]
[1722212359880,6.3478,186.78,186.62,1.07099228]
[1722212360078,6.3478,186.78,186.63,1.07094017]
[1722212360568,6.3478,186.78,186.63,17.19094017]
[1722212360772,6.3478,186.78,186.65,16.12]
[1722212360953,6.3478,186.78,186.66,82.53074323]
[1722212361151,6.3478,186.78,186.66,17.53074323]
[1722212361354,6.3478,186.78,186.67,65.0]
[1722212361557,16.1033,186.8,186.68,1.41074941]
[1722212362556,16.1033,186.8,186.69,1.0706013]
[1722212362756,16.1033,186.8,186.7,0.34]
[1722212362961,16.1033,186.8,186.71,1.07060427]
[1722212363172,16.1033,186.8,186.72,0.34]
[1722212363381,16.1033,186.8,186.73,1.0706046]
[1722212363564,6.6615,186.82,186.74,1.41052991]
[1722212363759,6.6615,186.82,186.74,1.07052991]
[1722212363980,6.6615,186.82,186.75,0.34]
[1722212364158,6.6615,186.82,186.75,1.41046928]
[1722212365476,15.1646,186.84,186.75,1.41046928]
[1722212366579,6.0241,186.87,186.76,16.12]
[1722212366760,6.0241,186.87,186.77,66.41018888]
[1722212368178,6.0241,186.87,186.77,21.07018888]
[1722212368385,6.0241,186.87,186.78,1.07037074]
[1722212368960,6.0241,186.87,186.74,1.07032939]
[1722212369374,6.0241,186.87,186.75,0.34]
[1722212369681,6.0241,186.87,186.76,1.07021593]
[1722212369877,6.0241,186.87,186.77,1.41021679]
[1722212371074,6.0241,186.87,186.77,0.34]
[1722212371279,6.0241,186.87,186.77,1.07039006]
[1722212371459,6.0241,186.87,186.78,0.34]
[1722212372067,6.0241,186.87,186.74,21.07039055]
[1722212372266,30.8341,186.87,186.72,1.07053077]
[1722212372494,30.8341,186.87,186.73,24.81]
[1722212372495,6.0241,186.87,186.73,24.81]
[1722212372796,6.0241,186.87,186.74,1.07040313]
[1722212373463,6.0241,186.87,186.76,24.81]
[1722212373660,6.0241,186.87,186.77,66.41022538]
[1722212376765,6.0241,186.87,186.77,65.34]
[1722212377665,6.0241,186.87,186.74,1.07034654]
[1722212378095,6.0241,186.87,186.7,24.81]
[1722212378393,6.0241,186.87,186.71,1.07066004]
[1722212378599,24.81,186.85,186.71,1.07066004]
[1722212378768,16.1554,186.83,186.68,1.0707315]
[1722212379995,16.1554,186.83,186.69,0.34]
[1722212380292,16.1554,186.83,186.69,1.41061838]
[1722212381367,16.1554,186.83,186.69,20.34]
[1722212381593,16.1554,186.83,186.7,46.07066678]
[1722212381768,16.1554,186.83,186.71,21.41061916]
[1722212381969,16.1554,186.83,186.72,45.0]
[1722212382291,16.1554,186.83,186.73,20.34]
[1722212382490,16.1554,186.83,186.74,45.0]
[1722212382797,16.1554,186.83,186.75,20.34]
[1722212382967,16.1554,186.83,186.76,45.0]
[1722212383169,5.54540441,186.91,186.77,26.6708]
[1722212383363,10.0,186.93,186.79,24.81]
[1722212383591,10.0,186.93,186.8,66.41018374]
[1722212383785,10.0,186.93,186.81,45.0]
[1722212383974,10.0,186.93,186.82,21.40988165]
[1722212384294,10.0,186.93,186.85,24.81]
[1722212384470,10.0,186.93,186.86,66.40975964]
[1722212388574,10.0,186.93,186.86,21.06975964]
[1722212389573,10.0,186.93,186.86,20.0]
[1722212389971,10.0,186.93,186.8,1.06994823]
[1722212390588,10.0,186.93,186.79,7.66698427]
[1722212390896,10.0,186.93,186.77,1.07024826]
[1722212391276,10.0,186.93,186.77,8.73723253]
[1722212393808,10.0,186.93,186.78,20.0]
[1722212393975,10.0,186.93,186.79,1.41012236]
[1722212394307,10.0,186.93,186.8,1.07012285]
[1722212394481,10.0,186.93,186.81,0.34]
[1722212394680,10.0,186.93,186.82,1.07012277]
[1722212394877,10.0,186.93,186.83,0.34]
[1722212395084,10.0,186.93,186.83,46.41012277]
[1722212395291,10.0,186.93,186.84,20.0]
[1722212395600,10.0,186.93,186.85,46.40988851]
[1722212395778,10.0,186.93,186.86,21.06989388]
[1722212395978,10.0,186.93,186.87,45.34]
[1722212396281,10.0,186.93,186.88,20.0]
[1722212396492,10.0,186.93,186.89,45.34]
[1722212396689,10.0,186.93,186.9,20.0]
[1722212396891,10.0,186.93,186.91,45.34]
[1722212397774,10.0,186.93,186.92,20.0]
[1722212397979,10.0,186.93,186.92,65.34]
[1722212398977,10.0,186.93,186.92,20.34]
[1722212399185,10.0,186.93,186.85,16.12]
[1722212399389,10.0,186.93,186.92,20.0]
[1722212399982,10.0,186.93,186.86,1.06975294]
[1722212400185,10.0,186.93,186.86,21.06975294]
[1722212400380,10.0,186.93,186.87,0.34]
[1722212400579,10.0,186.93,186.88,1.0698045]
[1722212400783,10.0,186.93,186.88,21.069815]
[1722212401392,10.0,186.93,186.88,1.069815]
[1722212401603,10.0,186.93,186.88,1.06983472]
[1722212401804,10.0,186.93,186.84,1.06989277]
[1722212402909,15.4734,186.92,186.85,1.06994359]
[1722212403088,15.4734,186.92,186.86,1.06999022]
[1722212403987,15.4734,186.92,186.81,17.18999029]
[1722212404209,15.4734,186.92,186.82,43.06476205]
[1722212404509,15.4734,186.92,186.83,1.06988754]
[1722212404804,15.4734,186.92,186.83,53.01464959]
[1722212405011,15.4734,186.92,186.84,20.34]
[1722212405187,15.4734,186.92,186.85,46.0698881]
[1722212405394,15.4734,186.92,186.86,21.40985655]
[1722212405581,10.0,186.93,186.87,45.0]
[1722212405790,10.0,186.93,186.88,21.4097896]
[1722212405986,10.0,186.93,186.89,45.0]
[1722212406304,10.0,186.93,186.9,21.40970825]
[1722212406501,10.0,186.93,186.91,45.0]
[1722212406683,10.0,186.93,186.92,20.34]
[1722212406898,10.0,186.93,186.92,65.34]
[1722212408296,10.0,186.93,186.84,8.01455701]
[1722212408803,10.0,186.93,186.85,6.94476205]
[1722212409007,10.0,186.93,186.86,17.18971429]
[1722212409181,10.0,186.93,186.86,1.06971429]
[1722212409794,10.0,186.93,186.86,46.06971429]
[1722212410109,10.0,186.93,186.87,20.0]
[1722212410312,10.0,186.93,186.88,46.06967923]
[1722212410492,10.0,186.93,186.89,20.0]
[1722212410691,10.0,186.93,186.9,45.0]
[1722212411020,10.0,186.93,186.91,20.0]
[1722212411508,10.0,186.93,186.92,0.34]
[1722212412323,10.0,186.93,186.92,45.34]
[1722212412816,10.0,186.93,186.92,66.40973432]
[1722212413416,0.8088815,187.0,186.92,81.46]
[1722212413596,0.8088815,187.0,186.94,16.12]
[1722212413793,0.8088815,187.0,186.95,66.40918043]
[1722212413996,0.8088815,187.0,186.96,1.06918297]
[1722212414321,0.8088815,187.0,186.97,0.34]
[1722212414995,0.8088815,187.0,186.97,1.40926728]
[1722212415323,0.8088815,187.0,186.97,0.34]
[1722212415625,0.8088815,187.0,186.92,1.06926178]
[1722212415792,0.8088815,187.0,186.93,1.06951741]
[1722212416112,21.7309,186.99,186.89,1.06948435]